Cogmind - Beta 14 @@@ ROGUE MODE // 2024.10.26 @ 21:22:24 Player: jimmyl Result: Destroyed by B-75 Beast with Magnetic Acceleration Cannon Performance ------------- Evolutions (3) 1500 Regions Visited (8) 1600 Robots Destroyed (54) 270 Value Destroyed (1846) 1846 Prototype IDs (5) 100 Alien Tech Used (0) 0 Bonus (22) 22 TOTAL SCORE: 5338 Bonus ------- High Alert Combat Kills 22 Cogmind --------- Core Integrity 0/700 Matter 206/300 Energy 33/100 System Corruption 0% Temperature Cool (28) Movement Core (300) Ox5 Location -7/Lower Caves Parts ------- > --- POWER (1) -------- (None) > --- PROPULSION (3) --- (None) > --- UTILITY (7) ------ Medium Storage Unit Improved Melee Analysis Suite Improved Target Analyzer Core Analyzer > --- WEAPON (2) ------- Improved Spread Laser Improved Spread Laser > --- INVENTORY (10) --- Compact Wheel Improved Melee Analysis Suite Improved Spread Laser Power Maul Power Maul Power Maul Power Maul Katana Makeshift Sword Peak State ------------ > --- POWER ------------ Heavy Ion Engine > --- PROPULSION ------- Light Treads Armored Wheel Armored Wheel > --- UTILITY ---------- Improved Cooling System Medium Storage Unit Improved Melee Analysis Suite Improved Melee Analysis Suite Improved Melee Analysis Suite Core Analyzer Hardened Medium Armor Plating > --- WEAPON ----------- Power Maul Power Maul > --- INVENTORY -------- Ion Engine Light Deuterium Engine Compact Wheel Improved Cooling System Improved Melee Analysis Suite Improved Spread Laser Improved Spread Laser Improved Spread Laser Power Maul Power Maul [Rating: 43] Favorites ----------- Power Light Ion Engine Engine Light Ion Engine Propulsion Light Treads Treads Light Treads Leg Titanium Leg Wheel Compact Wheel Utility Improved Melee Analysis Suite Device Improved Cooling System Storage Medium Storage Unit Processor Improved Melee Analysis Suite Protection Reflective Plating Weapon Power Maul Energy Gun Small Laser Energy Cannon Cooled Particle Cannon Ballistic Gun Light Assault Rifle Launcher Grenade Launcher Impact Weapon Power Maul Build | -11 -10 -10 -10 -9 -8 -7 -7 -7 ------- Run | Yrd Mat Min Exi Min Mat Fac Low Low Slots Evolved 6 | . . . . . 4 2 . . Power . | . . . . . . . . . Propulsion 1 | . . . . . 1 . . . Utility 5 | . . . . . 3 2 . . Weapon . | . . . . . . . . . Parts Attached 57 | . 2 2 . 1 30 16 2 4 Power 3 | . . . . . 1 2 . . Engine 3 | . . . . . 1 2 . . Core . | . . . . . . . . . Reactor . | . . . . . . . . . Propulsion 12 | . 2 . . . 4 6 . . Treads 4 | . 2 . . . 2 . . . Leg 2 | . . . . . . 2 . . Wheel 6 | . . . . . 2 4 . . Hover . | . . . . . . . . . Flight . | . . . . . . . . . Utility 17 | . . . . . 8 8 . 1 Device 4 | . . . . . 3 1 . . Storage 1 | . . . . . 1 . . . Processor 6 | . . . . . 3 2 . 1 Hackware . | . . . . . . . . . Protection 6 | . . . . . 1 5 . . Artifact . | . . . . . . . . . Weapon 25 | . . 2 . 1 17 . 2 3 Energy Gun 10 | . . . . . 8 . . 2 Energy Cannon 1 | . . . . . . . 1 . Ballistic Gun 4 | . . 1 . . 3 . . . Ballistic Cannon . | . . . . . . . . . Launcher 4 | . . 1 . 1 1 . . 1 Special Weapon . | . . . . . . . . . Impact Weapon 6 | . . . . . 5 . 1 . Slashing Weapon . | . . . . . . . . . Piercing Weapon . | . . . . . . . . . Special Melee Weapon . | . . . . . . . . . Unidentified Prototypes 5 | . . . . . 4 . 1 . Parts Lost 24 | . . . . . 7 10 . 7 Power 3 | . . . . . 1 2 . . Propulsion 11 | . . . . . 3 5 . 3 Utility 7 | . . . . . 1 3 . 3 Weapon 3 | . . . . . 2 . . 1 Highest Loss Streak 7 | . . . . . 2 4 . 7 To Critical Strikes . | . . . . . . . . . Average Slot Usage (%) 82 | . 83 85 85 85 65 83 91 89 Engine 6 | . 14 14 14 14 6 6 . . Treads 9 | . 17 28 28 28 11 1 . . Leg 5 | . 8 . . . . . 15 14 Wheel 5 | . . . . . 2 15 7 6 Device 5 | . . . . . 8 6 7 7 Storage 9 | . 14 14 14 14 9 7 7 7 Processor 13 | . . . . . 6 22 23 23 Protection 6 | . . . . . 3 5 15 13 Energy Gun 5 | . 14 14 14 14 9 . . . Ballistic Gun 3 | . 14 14 14 11 3 . . . Impact Weapon 8 | . . . . . 3 15 14 14 Peak Build Rating 43 | . 6 6 6 6 36 43 42 41 Average Rating 25 | . 5 6 6 6 16 35 39 39 On Entrance 17 | 6 6 6 6 6 6 36 41 40 Naked Turns . | . . . . . . . . . Heaviest Build 34 | 10 10 10 10 12 30 34 23 23 Greatest Support 44 | 20 40 40 40 40 40 44 35 17 Greatest Overweight (x) 2 | . . . . . 2 1 1 1 Average Overweight (x) . | . . . . . . . . 1 Largest Inventory Capacity 10 | . 8 8 8 8 10 10 10 10 Average Capacity 9 | . 8 8 8 8 9 10 10 10 Most Carried 10 | . 7 5 5 6 10 10 10 10 Average Carried 7 | . 5 5 5 5 7 8 9 9 Final Capacity 10 | 8 8 8 8 8 10 10 10 10 Final Carried 10 | 6 5 5 5 6 10 10 10 9 Class Distribution -------------------- 56% | Gladiator 35% | Mutant 8% | Scavenger-Mutant Dominant Class ---------------- Mutant | -10/Materials Mutant | -10/Mines Mutant | -10/Exiles Mutant | -9/Mines Mutant | -8/Materials Gladiator | -7/Factory Gladiator | -7/Lower Caves Gladiator | -7/Lower Caves Resources | -11 -10 -10 -10 -9 -8 -7 -7 -7 ----------- Run | Yrd Mat Min Exi Min Mat Fac Low Low Matter Collected 853 | 200 . 17 . 55 406 143 30 2 Remotely . | . . . . . . . . . Salvage Created 2092 | . . 24 . 30 1164 746 79 49 Parts 87 | . . 7 . 3 59 15 . 3 Haulers Intercepted 2 | . . . . . 1 1 . . Recyclers Shooed 3 | . . . . . 3 . . . Parts Field Recycled . | . . . . . . . . . Retrieved Matter . | . . . . . . . . . Parts Self-Destructed 1 | . . . . . . . . 1 Prevented . | . . . . . . . . . Kills | -11 -10 -10 -10 -9 -8 -7 -7 -7 ------- Run | Yrd Mat Min Exi Min Mat Fac Low Low Combat Hostiles Destroyed 42 | . . 3 . 1 23 12 . 3 Melee 2 | . . . . . . 2 . . Guns 20 | . . . . 1 18 . . 1 AOE 10 | . . 3 . . 3 2 . 2 Classes Destroyed 11 | . . 1 . 1 5 4 . . Worker 5 | . . . . . . 5 . . Builder 1 | . . . . . . 1 . . Hauler 2 | . . . . . 1 1 . . Recycler 1 | . . . . . . 1 . . Operator 1 | . . . . . 1 . . . Watcher 2 | . . . . . 2 . . . Swarmer 10 | . . 3 . . 3 1 . 3 Grunt 22 | . . . . 1 16 5 . . Duelist 4 | . . . . . 1 3 . . Sentry 5 | . . . . . 3 2 . . Hunter 1 | . . . . . . 1 . . Best Kill Streak 8 | . . 3 . 1 8 5 . 3 Combat Bots Only 8 | . . 3 . 1 8 4 . 3 Max Kills in Single Turn 3 | . . 2 . 1 2 3 . 2 Gunslinging . | . . . . . . . . . Exploded 2 | . . 2 . . 1 2 . 2 Melee 1 | . . . . . . 1 . . Uniques/NPCs Destroyed . | . . . . . . . . . Combat | -11 -10 -10 -10 -9 -8 -7 -7 -7 -------- Run | Yrd Mat Min Exi Min Mat Fac Low Low Hostile Shots Fired 346 | . 18 4 . 8 119 134 . 63 Missed 96 | . 1 1 . 2 33 43 . 16 Damage Taken 4228 | . 131 27 . 62 1427 1555 . 1026 Core 1128 | . 35 9 . . 383 325 . 376 Absorbed by Shields . | . . . . . . . . . Redirected to Shielding 59 | . . . . . . 14 . 45 Ignored by Resistances 36 | . . . . . . 24 . 12 Regen/Repaired (Parts) 97 | . . . . . . 97 . . Core Remaining (%) 70 | 100 . . . 82 30 . . . Volleys Fired 96 | . 1 2 . 7 79 . . 7 Largest 2 | . 2 1 . 2 2 . . 2 Hottest 150 | . 60 30 . 60 125 . . 150 Shots Fired 165 | . 2 2 . 8 145 . . 8 Gun 151 | . 2 . . 8 139 . . 2 Cannon . | . . . . . . . . . Launcher 14 | . . 2 . . 6 . . 6 Special . | . . . . . . . . . Kinetic 32 | . 1 . . 1 30 . . . Thermal 106 | . 1 . . 7 96 . . 2 Explosive 14 | . . 2 . . 6 . . 6 Electromagnetic 13 | . . . . . 13 . . . Robot Hit Streak 11 | . 2 4 . 7 11 . . 5 Robot Miss Streak 3 | . . . . 1 2 . . 3 Penetration Max . | . . . . . . . . . Secondary Targets 2 | . . . . . 1 . . 1 Max Gunslinging Chain 1 | . . . . . 1 . . 1 Shots Hit Robots 164 | . 2 2 . 7 105 42 2 4 Core Hits 85 | . . 3 . 3 54 15 1 9 Critical Kills 2 | . . . . . . 2 . . Critical Parts Destroyed 9 | . 1 . . . 1 7 . . Critical Strikes 25 | . 1 . . . 15 9 . . Burn 13 | . . . . . 13 . . . Destroy 1 | . 1 . . . . . . . Corrupt 1 | . . . . . 1 . . . Smash 10 | . . . . . 1 9 . . Melee Attacks 61 | . . . . . 6 53 2 . Impact 61 | . . . . . 6 53 2 . Slashing . | . . . . . . . . . Piercing . | . . . . . . . . . Sneak Attacks 9 | . . . . . . 9 . . Combat Hostiles . | . . . . . . . . . Follow-up Attacks 10 | . . . . . 1 9 . . Damage Inflicted 5924 | . 16 128 . 72 2289 2848 209 362 Guns 1736 | . 16 . . 72 1593 . . 55 Cannons . | . . . . . . . . . Explosions 1412 | . . 128 . . 455 522 . 307 Melee 2768 | . . . . . 233 2326 209 . Ramming 8 | . . . . . 8 . . . Kinetic 380 | . 6 . . 6 368 . . . Thermal 1435 | . 10 . . 66 1061 243 . 55 Explosive 991 | . . 128 . . 455 101 . 307 Electromagnetic 342 | . . . . . 164 178 . . Impact 2768 | . . . . . 233 2326 209 . Slashing . | . . . . . . . . . Piercing . | . . . . . . . . . Highest Corruption . | . . . . . . . . . Average Corruption . | . . . . . . . . . Corruption Purged . | . . . . . . . . . Corruption Blocked 5 | . . . . . . . 5 . Overload Shots . | . . . . . . . . . Overflow Damage 938 | . . . . . 80 793 65 . Projectiles . | . . . . . . . . . Explosions 122 | . . . . . 17 105 . . Melee 816 | . . . . . 63 688 65 . Knockbacks 8 | . . . . . . 8 . . Impact 7 | . . . . . . 7 . . Kinetic . | . . . . . . . . . Secondary 1 | . . . . . . 1 . . Self-Inflicted Damage 440 | . . . . . 87 285 . 68 Shots 11 | . . . . . 3 5 . 3 Rammed 4 | . . . . . 4 . . . Targets Rammed 4 | . . . . . 4 . . . Kicked . | . . . . . . . . . Crushed . | . . . . . . . . . Highest Temperature 315 | . 20 . . 24 315 . . 16 Average Temperature 70 | . 15 . . 16 76 . . 16 Received Heat Transfer 1026 | . . . . 36 612 270 . 108 Effects 1 | . . . . . 1 . . . Interference 1 | . . . . . 1 . . . Siege Activations . | . . . . . . . . . Robots Corrupted 9 | . . . . . 1 8 . . Combat Hostiles 9 | . . . . . 1 8 . . Parts Fried 16 | . . . . . 1 15 . . Impact Corruptions 30 | . . . . . 3 23 4 . Robots Melted 1 | . . . . . 1 . . . Combat Hostiles 1 | . . . . . 1 . . . Parts Melted 12 | . . . . 1 10 1 . . Heat Transferred 3707 | . 25 . . 150 3282 200 . 50 Parts Sabotaged . | . . . . . . . . . Parts Stolen . | . . . . . . . . . Parts Stripped . | . . . . . . . . . Power Chain Reactions 1 | . . . . . . 1 . . Alert | -11 -10 -10 -10 -9 -8 -7 -7 -7 ------- Run | Yrd Mat Min Exi Min Mat Fac Low Low Peak Influence 412 | . 45 103 . 20 400 412 . . Initial 150 | . . 17 . . 7 150 . . Average 165 | . 16 99 . . 244 206 . . Maximum Alert Level 2 | . . . . . 2 2 . . Low Security (%) 52 | . 100 100 . 100 21 45 . . Level 1 46 | . . . . . 76 53 . . Level 2 1 | . . . . . 2 . . . Level 3 . | . . . . . . . . . Level 4 . | . . . . . . . . . Level 5 . | . . . . . . . . . High Security . | . . . . . . . . . Max Security . | . . . . . . . . . Squads Dispatched 10 | . 2 . . . 6 2 . . Investigation . | . . . . . . . . . Extermination 1 | . . . . . . 1 . . Reinforcement 6 | . 2 . . . 3 1 . . Assault . | . . . . . . . . . Garrison 3 | . . . . . 3 . . . Intercept . | . . . . . . . . . Searches Triggered . | . . . . . . . . . Construction Impeded . | . . . . . . . . . Haulers Reinforced 1 | . . . . . . 1 . . Active Scanning Responses . | . . . . . . . . . Cargo Convoy Interrupts . | . . . . . . . . . Stealth | -11 -10 -10 -10 -9 -8 -7 -7 -7 --------- Run | Yrd Mat Min Exi Min Mat Fac Low Low Distress Signals 6 | . 1 . . 1 4 . . . Communications Jammed . | . . . . . . . . . Distress Signals . | . . . . . . . . . Times Spotted 71 | . 6 3 . 1 40 13 3 5 Peak Tracking Total 6 | . 4 3 . 1 6 4 3 5 Tactical Retreats 5 | . . . . . 2 . 2 1 Traps | -11 -10 -10 -10 -9 -8 -7 -7 -7 ------- Run | Yrd Mat Min Exi Min Mat Fac Low Low Traps Triggered 1 | . . . . . . 1 . . Indirectly . | . . . . . . . . . Trap Hack Attempts . | . . . . . . . . . Triggered . | . . . . . . . . . Disarmed . | . . . . . . . . . Reprogrammed . | . . . . . . . . . Reused . | . . . . . . . . . Traps Extracted . | . . . . . . . . . Installed . | . . . . . . . . . Triggered . | . . . . . . . . . Machines | -11 -10 -10 -10 -9 -8 -7 -7 -7 ---------- Run | Yrd Mat Min Exi Min Mat Fac Low Low Machines Disabled 7 | . . . . . . 7 . . Max in Single Turn 6 | . . . . . . 6 . . Machines Repaired . | . . . . . . . . . Machines Dismantled . | . . . . . . . . . Machines Sabotaged . | . . . . . . . . . Overloaded Fab Kills . | . . . . . . . . . Hacking | -11 -10 -10 -10 -9 -8 -7 -7 -7 --------- Run | Yrd Mat Min Exi Min Mat Fac Low Low Machines Accessed 2 | . . . . . . 1 . 1 Terminals . | . . . . . . . . . Fabricators . | . . . . . . . . . Repair Stations 1 | . . . . . . 1 . . Recycling Units . | . . . . . . . . . Scanalyzers . | . . . . . . . . . Garrison Access . | . . . . . . . . . Total Hacks 3 | . . . . . . 2 . 1 Successful 3 | . . . . . . 2 . 1 Failed . | . . . . . . . . . Catastrophic . | . . . . . . . . . Database Lockouts . | . . . . . . . . . Manual . | . . . . . . . . . Terminals . | . . . . . . . . . Fabricators . | . . . . . . . . . Repair Stations 2 | . . . . . . 2 . . Recycling Units . | . . . . . . . . . Scanalyzers . | . . . . . . . . . Garrison Access . | . . . . . . . . . Terminal Hacks 1 | . . . . . . . . 1 Open Door 1 | . . . . . . . . 1 Fabricator Hacks . | . . . . . . . . . Repair Station Hacks 2 | . . . . . . 2 . . Scan Component 1 | . . . . . . 1 . . Repair 1 | . . . . . . 1 . . Recycling Unit Hacks . | . . . . . . . . . Scanalyzer . | . . . . . . . . . Garrison Access Hacks . | . . . . . . . . . Unauthorized Hacks . | . . . . . . . . . Terminals . | . . . . . . . . . Fabricators . | . . . . . . . . . Repair Stations . | . . . . . . . . . Recycling Units . | . . . . . . . . . Scanalyzers . | . . . . . . . . . Garrison Access . | . . . . . . . . . Data Cores Recovered . | . . . . . . . . . Used . | . . . . . . . . . Hacking Detections . | . . . . . . . . . Full Trace Events . | . . . . . . . . . Feedback Events . | . . . . . . . . . Feedback Blocked . | . . . . . . . . . Robot Schematics Acquired . | . . . . . . . . . Robots Built . | . . . . . . . . . Authchips . | . . . . . . . . . Time . | . . . . . . . . . Total Robot Build Rating . | . . . . . . . . . Part Schematics Acquired . | . . . . . . . . . Parts Built . | . . . . . . . . . Authchips . | . . . . . . . . . Time . | . . . . . . . . . Total Part Build Rating . | . . . . . . . . . Parts Repaired 1 | . . . . . . 1 . . Time 32 | . . . . . . 32 . . Parts Recycled . | . . . . . . . . . Recycled Matter . | . . . . . . . . . Retrieved Matter . | . . . . . . . . . Retrieved Components . | . . . . . . . . . Parts Scanalyzed . | . . . . . . . . . Part Schematics Acquired . | . . . . . . . . . Parts Damaged . | . . . . . . . . . Bothacking | -11 -10 -10 -10 -9 -8 -7 -7 -7 ------------ Run | Yrd Mat Min Exi Min Mat Fac Low Low Used RIF Installer . | . . . . . . . . . Robots Hacked . | . . . . . . . . . Non-combat . | . . . . . . . . . Combat . | . . . . . . . . . Robot Hacks Applied . | . . . . . . . . . Relay Couplers Released . | . . . . . . . . . Fabnet Peak Effective % . | . . . . . . . . . Robots Rewired 1 | . . . . . . 1 . . Allies Hacked . | . . . . . . . . . Hacks Repelled . | . . . . . . . . . Allies | -11 -10 -10 -10 -9 -8 -7 -7 -7 -------- Run | Yrd Mat Min Exi Min Mat Fac Low Low Total Allies 1 | . . . . . . 1 . . Largest Group 1 | . . . . . . 1 . . Highest-Rated Group 12 | . . . . . . 12 . . Highest-Rated Ally 12 | . . . . . . 12 . . Total Orders . | . . . . . . . . . Ally Attacks 4 | . . . . . . 4 . . Total Damage 59 | . . . . . . 59 . . Kills . | . . . . . . . . . Allies Corrupted . | . . . . . . . . . Allies Melted . | . . . . . . . . . Intel | -11 -10 -10 -10 -9 -8 -7 -7 -7 ------- Run | Yrd Mat Min Exi Min Mat Fac Low Low Robot Analysis Total . | . . . . . . . . . Derelict Logs Recovered 4 | . . 1 . 1 . . 1 1 Drone Launches . | . . . . . . . . . Drone Recoveries . | . . . . . . . . . Exploration | -11 -10 -10 -10 -9 -8 -7 -7 -7 ------------- Run | Yrd Mat Min Exi Min Mat Fac Low Low Turns Passed 4556 | . 167 123 207 560 1130 851 1289 229 Spaces Moved 2894 | 1 112 73 130 314 459 624 1007 174 Core . | . . . . . . . . . Treads 902 | . 65 73 130 314 320 . . . Legs 446 | 1 47 . . . . 1 394 3 Wheels 1546 | . . . . . 139 623 613 171 Hover . | . . . . . . . . . Flight . | . . . . . . . . . Fastest Speed 90 | 120 120 160 160 160 90 90 115 115 Average Speed 131 | 120 143 160 160 160 167 101 118 116 Slowest Speed 240 | 120 160 160 160 160 240 125 125 200 Overloaded Moves . | . . . . . . . . . Propulsion Burnouts . | . . . . . . . . . Robots Hopped . | . . . . . . . . . Cave-ins Triggered . | . . . . . . . . . Exploration Rate (%) 35 | 2 27 28 49 49 42 15 89 21 Regions Visited 8 Branch Regions 5 Pre-discovered Areas 1 | . . 1 . . . . . . Known Exits Taken . | . . . . . . . . . Unknown Exits Taken 8 | 1 1 1 1 1 1 1 1 . Scrap Searched 7 | . . . . 1 . . 1 5 Spaces Dug . | . . . . . . . . . Terrain Destroyed 105 | . . 16 . . 19 5 . 65 Melee . | . . . . . . . . . Projectile . | . . . . . . . . . AOE 105 | . . 16 . . 19 5 . 65 Terrain Rammed . | . . . . . . . . . Walls Destroyed . | . . . . . . . . . Machines Disabled . | . . . . . . . . . Actions | -11 -10 -10 -10 -9 -8 -7 -7 -7 --------- Run | Yrd Mat Min Exi Min Mat Fac Low Low Total 3392 | . 118 76 129 363 670 748 1094 194 Wait 246 | . 1 . . 41 58 60 82 4 Move 2886 | . 111 72 129 313 458 623 1006 174 Hop . | . . . . . . . . . Pick Up 23 | . 1 . . 1 13 5 1 2 Fast Attach 31 | . . . . . 19 11 . 1 Attach 17 | . 2 . . . 8 5 1 1 Detach 7 | . . . . . 7 . . . Swap 9 | . . 2 . 1 3 . 1 2 Drop 23 | . 2 . . . 16 1 1 3 Fire 96 | . 1 2 . 7 79 . . 7 Melee 49 | . . . . . 5 42 2 . Ram . | . . . . . . . . . Kick . | . . . . . . . . . Crush 4 | . . . . . 4 . . . Escape Stasis . | . . . . . . . . . Rewire 1 | . . . . . . 1 . . Trap . | . . . . . . . . . Miscellaneous . | . . . . . . . . . Route ------- -11/Scrapyard -10/Materials -10/Mines -10/Exiles -9/Mines -8/Materials -7/Factory -7/Lower Caves -7/Lower Caves History --------- Turn | Location | Event 1 | -11/Scrapyard | Discovered new exit (range 0) 1 | -11/Scrapyard | Entered Materials 146 | -10/Materials | Discovered new exit (range 15) 168 | -10/Materials | Entered Mines 283 | -10/Mines | Deemed a non-threat by the Exiles lab entrance 283 | -10/Mines | Discovered new exit (range 5) 291 | -10/Mines | Entered Exiles 312 | -10/Exiles | Build established: Mutant 335 | -10/Exiles | Met 8R-AWN 359 | -10/Exiles | Met EX-HEX 419 | -10/Exiles | Met EX-DEC 474 | -10/Exiles | Discovered new exit (range 15) 498 | -10/Exiles | Entered Mines 529 | -9/Mines | Met a Derelict bent on vengeance 748 | -9/Mines | Learned Materials emergency access door positions 759 | -9/Mines | Assembled infested the area 764 | -9/Mines | Assisted by a Guerilla fighting off Assembled 1027 | -9/Mines | Discovered new exit (range 8) 1058 | -9/Mines | Entered Materials 1058 | -8/Materials | Evolved 4 slots: Propulsion x1, Utility x3 1266 | -8/Materials | Garrison activated, responded to threat 1330 | -8/Materials | Core integrity fell below 50% 1351 | -8/Materials | Destroyed 8 combat bots 1747 | -8/Materials | Build established: Scavenger-Mutant 2148 | -8/Materials | Discovered new exit (range 5) 2188 | -8/Materials | Entered Factory 2188 | -7/Factory | Evolved 2 slots: Utility x2 2280 | -7/Factory | Build established: Gladiator 2480 | -7/Factory | Repaired Arm. Wheel 2612 | -7/Factory | Lost 4 parts (1p1n2u) 3020 | -7/Factory | Discovered new exit (range 8) 3039 | -7/Factory | Entered Lower Caves 3210 | -7/Lower Caves | Encountered a Warlord checkpoint 4235 | -7/Lower Caves | Learned Factory emergency access door positions 4319 | -7/Lower Caves | Discovered new exit (range 9) 4328 | -7/Lower Caves | Entered another Lower Caves area 4354 | -7/Lower Caves | Learned Factory security intel 4486 | -7/Lower Caves | Spotted B-75 Beast 4523 | -7/Lower Caves | Core integrity fell below 50% 4547 | -7/Lower Caves | Core integrity fell below 20% 4557 | -7/Lower Caves | Destroyed by B-75 Beast with Magnetic Acceleration Cannon Last Messages --------------- 04406_ Acquired Imp. Target Analyzer. 04529_ Reflective Plating destroyed. 04529_ Knocked back. 04530_ Acquired 2 matter. 04532_ Imp. Carbon-fiber Leg destroyed. 04534_ Com. Wheel destroyed. 04535_ Knocked back. 04542_ S-27 Virus destroyed. 04549_ Titanium Leg destroyed. 04549_ Knocked back. 04551_ Imp. Cooling System destroyed. 04552_ Weapon Shielding destroyed. 04552_ Knocked back. 04552_ Hvy. Rocket Launcher destroyed. 04553_ The unstable cave ceiling collapses. 04554_ Autogun fries itself beyond repair. 04554_ The unstable cave ceiling collapses. 04556_ S-27 Virus destroyed. 04556_ Switching to secondary target: B-75 Beast. 04557_ The unstable cave ceiling collapses. Map ----- +----------------------------------------------------+ | ?????????????????????????????????????????????????? | | ?????????????????????????????????????????????????? | | ??????????????????????????????????????????###????? | | ?????????????????????????????????????????? #####? | | ???????????????????????????????????####### ## | | ???????????????????????????????????# ## # | | ???????????????????????????????????## #??? | | ????????????????????????????????????# #???? | | ????????????????????????????????????# #???? | | ????????????????????????????????????## #???? | | ?????????????????????????????????????## ##???? | | ????????????????????????????????####### ####### | | ????????????????????????????????# ## | | ???????????????????????????????## ##### | | ????????????????????????????####; ##??## """ | | ????????????????????????????# ##??# """ | | ????????????????????????????# # ## """ | | ????????????????????????????# ## "" | | ???????????????????????????## # ## "" | | ??????????????????????????## $ """ | | ?????????????????????????## "" | | ????????????????????????? | | ?????????????????????#???# | | ?????????????????????#;### # ###### ## | | ??????????????????????# s BB ###### ### | | ??????????????????????#=%@ BB ## | | ??????????????????????# ## # $ | | ?????????????????????????#% """ ## | | ?????????????????????????# ##" ##?# | | ?????????????????????????## ### #???### | | ??????????????????????????######### ## #?????? | | ??????????????????????????????????### ## #?????? | | ????????????????????????????????????# ### #????? | | ????????????????????????????????????# #?#####????? | | ????????????????????????????????????# ??????????? | | ???????????????????????????????????? ??????????? | | ???????????????????????????????????? ?????????? | | ???????????????????????????????????? ?????????? | | ???????????????????????????????????? ?????????? | | ????????????????????????????????????### ????????? | | ???????????????????????????????????????##????????? | | ?????????????????????????????????????????????????? | | ?????????????????????????????????????????????????? | | ?????????????????????????????????????????????????? | | ?????????????????????????????????????????????????? | | ?????????????????????????????????????????????????? | | ?????????????????????????????????????????????????? | | ?????????????????????????????????????????????????? | | ?????????????????????????????????????????????????? | | ?????????????????????????????????????????????????? | +----------------------------------------------------+ Best States ------------- Heat Dissipation 61 Energy Generation 14 Energy Capacity 280 Matter Stores 300 Matter Capacity 300 Sight Range 16 Terrain Scan Density 10 Corruption Block 8 Armor Coverage 225 Resistance: TH 10 Weapon Shielding 33 Evasion (%) 55 Melee Accuracy 18 Target Analysis 6 Core Analysis 6 Recoil Reduction 2 Item Schematics ----------------- None Robot Schematics ------------------ None Fabricated ------------ Nothing Alien Tech Used ----------------- None Achievements -------------- None Challenges ------------ None Game ------ Seed ArmorChromaticGuard Manual? 0 Play Time 00:23:56 Cumulative 144.5 hours Start 2024.10.26 @ 20:56:41 End 2024.10.26 @ 21:22:24 Sessions 1 Manual Loads 0 Difficulty Rogue Special Mode None Game No. 240 Rogue 239 Adventurer 1 Explorer 0 Win Type - Total 2 Types 2/0/0/0/0/0/0/0/0 Lore% 72 Gallery% 70 Achievement% 51 Wizard Run 0 Options --------- Layout 1 ASCII 0 Keyboard 0 Movement Mouse Keybinds 0 Fullscreen 2 Font 20/SmallcapsGlow Map View 54x42 Zoom Use 0% Tactical HUD 1 Map Filters NONE Filters NONE Steam 0 RUN: 45cd4ae5-d379-41eb-bf34-549aef221ca9